bitfinex/quotes_SOLUSD_20241121
["timestamp","ask_amount","ask_price","bid_price","bid_amount"]
[1732172711599,15.13089125,238.75,238.71,24.1408]
[1732172711812,15.13089125,238.75,238.71,24.6408]
[1732172712012,15.13089125,238.75,238.71,24.1408]
[1732172712518,15.13089125,238.73,238.68,0.5]
[1732172712819,23.776884,238.74,238.69,0.5]
[1732172712820,15.13089125,238.71,238.69,0.5]
[1732172713002,15.13089125,238.71,238.64,23.0612]
[1732172713191,15.13089125,238.68,238.64,24.0612]
[1732172713413,15.13089125,238.68,238.64,23.0612]
[1732172713831,23.776884,238.67,238.64,23.0612]
[1732172714209,18.776884,238.67,238.64,23.0612]
[1732172714430,15.13089125,238.68,238.62,0.5]
[1732172714629,15.13089125,238.68,238.64,0.5]
[1732172715430,24.30369125,238.8,238.64,1.0]
[1732172715431,15.13089125,238.7,238.64,1.0]
[1732172715734,14.63089125,238.7,238.64,1.0]
[1732172716426,14.63089125,238.7,238.66,0.5]
[1732172718735,15.13089125,238.74,238.69,1.0]
[1732172719036,15.13089125,238.78,238.73,0.5]
[1732172719229,0.469598,238.81,238.73,0.5]
[1732172719436,15.13089125,238.79,238.73,0.5]
[1732172719636,15.13089125,238.77,238.73,0.5]
[1732172720143,15.13089125,238.79,238.73,0.5]
[1732172720326,15.13089125,238.79,238.73,1.0]
[1732172721349,15.13089125,238.79,238.74,0.5]
[1732172722934,15.13089125,238.79,238.77,0.5]
[1732172723118,15.60048925,238.81,238.77,0.5]
[1732172723831,15.60048925,238.81,238.71,15.13089125]
[1732172723832,15.13089125,238.79,238.75,0.5]
[1732172724141,15.13089125,238.79,238.74,1.0]
[1732172724334,15.60048925,238.81,238.77,0.5]
[1732172724515,15.60048925,238.81,238.76,0.5]
[1732172724719,15.13089125,238.79,238.76,0.5]
[1732172725735,0.469598,238.81,238.76,0.5]
[1732172725942,10.60048925,238.81,238.76,0.5]
[1732172726937,10.60048925,238.81,238.76,0.4059483]
[1732172727822,4.16562665,238.86,238.77,15.13089125]
[1732172728028,15.13089125,238.86,238.78,0.4059483]
[1732172728441,15.13089125,238.84,238.78,0.4059483]
[1732172731429,15.13089125,238.84,238.79,24.0361]
[1732172731942,15.13089125,238.82,238.79,24.0361]
[1732172732140,15.13089125,238.8,238.78,0.4059483]
[1732172732329,15.13089125,238.8,238.76,0.9059483]
[1732172732530,15.13089125,238.8,238.76,0.4059483]
[1732172732752,15.13089125,238.8,238.74,24.4563]
[1732172732753,15.13089125,238.78,238.75,0.4059483]
[1732172732954,15.13089125,238.76,238.73,0.4059483]
[1732172733247,15.13089125,238.74,238.71,0.4059483]
[1732172733631,15.13089125,238.8,238.69,31.4057]
[1732172733632,15.13089125,238.72,238.69,22.3491]
[1732172733827,15.13089125,238.7,238.66,0.4059483]
[1732172734038,15.13089125,238.68,238.66,0.4059483]
[1732172734845,15.13089125,238.68,238.57,27.07282506]
[1732172734846,15.13089125,238.72,238.68,0.4059483]
[1732172735757,15.13089125,238.7,238.66,0.4059483]
[1732172735963,15.13089125,238.7,238.68,0.4059483]
[1732172736367,15.13089125,238.7,238.66,0.4059483]
[1732172736670,10.70947234,238.78,238.63,15.13089125]
[1732172736671,15.13089125,238.72,238.68,0.4059483]
[1732172737240,15.13089125,238.76,238.7,0.5]
[1732172737554,6.52147234,238.79,238.68,0.9059483]
[1732172737555,15.13089125,238.74,238.68,0.9059483]
[1732172737756,15.13089125,238.74,238.7,0.5]
[1732172738846,6.52147234,238.8,238.71,0.4059483]
[1732172739168,21.65236359,238.84,238.76,0.5]
[1732172739476,15.13089125,238.8,238.75,0.4059483]
[1732172739641,15.13089125,238.8,238.73,0.4059483]
[1732172739968,15.13089125,238.78,238.73,0.4059483]
[1732172740344,15.13089125,238.78,238.72,0.5]
[1732172740345,15.13089125,238.78,238.75,0.4059483]
[1732172742766,15.13089125,238.8,238.75,0.4059483]
[1732172742948,23.776884,238.79,238.73,0.4059483]
[1732172743259,23.776884,238.79,238.75,0.4059483]
[1732172744077,15.13089125,238.8,238.75,0.9059483]
[1732172744655,15.13089125,238.83,238.77,0.5]
[1732172744855,15.13089125,238.83,238.77,0.9059483]
[1732172746475,23.776884,238.85,238.77,0.9059483]
[1732172746658,15.13089125,238.83,238.77,0.9059483]
[1732172746969,15.13089125,238.83,238.77,0.5]
[1732172747275,15.13089125,238.83,238.77,0.9059483]
[1732172748375,15.13089125,238.87,238.79,16.03683955]
[1732172748677,15.13089125,238.87,238.81,0.5]
[1732172749656,15.13089125,238.87,238.82,0.4059483]
[1732172750169,15.13089125,238.89,238.83,0.5]
[1732172750554,6.52147234,238.9,238.86,0.5]
[1732172750755,21.65236359,238.91,238.86,0.5]
[1732172751078,15.13089125,238.91,238.88,0.5]
[1732172751261,15.13089125,238.91,238.86,0.5]
[1732172751570,15.13089125,238.89,238.84,0.5]
[1732172751776,15.13089125,238.89,238.86,0.5]
[1732172752080,4.16019582,238.96,238.88,0.5]
[1732172752081,15.13089125,238.91,238.88,0.5]
[1732172752251,15.13089125,238.91,238.87,0.4059483]
[1732172753054,15.13089125,238.91,238.88,0.5]
[1732172754171,15.13089125,238.93,238.88,0.5]
[1732172756064,23.776884,238.98,238.9,0.9059483]
[1732172756255,15.13089125,238.97,238.9,0.9059483]
[1732172756675,15.13089125,238.93,238.88,0.9059483]
[1732172756982,15.13089125,238.93,238.91,0.4059483]
[1732172757275,15.13089125,238.95,238.91,0.4059483]
[1732172757664,15.13089125,238.93,238.91,0.4059483]
[1732172757863,15.13089125,238.93,238.89,0.4059483]
[1732172758063,15.13089125,238.9,238.89,0.4059483]
[1732172758776,9.67785704,238.9,238.89,0.4059483]
[1732172759797,9.67785704,238.9,238.87,0.4059483]
[1732172760483,9.67785704,238.88,238.84,0.5]
[1732172760796,4.02781907,239.0,238.9,0.5]
[1732172760998,15.12246361,238.96,238.91,0.4059483]
[1732172761598,15.12246361,238.94,238.91,0.4059483]
[1732172761891,15.12246361,238.92,238.91,0.4059483]
[1732172763081,15.12246361,238.94,238.91,0.4059483]
[1732172763288,15.12246361,238.96,238.92,0.9059483]
[1732172764298,15.12246361,238.96,238.92,0.5]
[1732172764610,15.12246361,238.96,238.92,0.9059483]
[1732172765596,15.12246361,238.96,238.94,0.5]
[1732172765804,15.12246361,238.98,238.94,0.5]
[1732172766920,15.12246361,238.98,238.94,0.9059483]
[1732172767406,15.12246361,239.0,238.96,0.9059483]
[1732172768279,15.12246361,239.02,238.98,0.9059483]
[1732172768510,15.59206161,239.04,238.98,0.9059483]
[1732172770480,15.59206161,239.04,239.01,0.5]
[1732172770698,15.59206161,239.04,238.99,0.5]
[1732172771213,15.59206161,239.04,239.03,25.2449483]
[1732172771214,0.469598,239.04,239.03,25.2449483]
[1732172772394,15.12246361,239.16,239.12,0.5]
[1732172773297,15.12246361,239.16,239.12,0.9059483]
[1732172773890,15.12246361,239.16,239.14,0.5]
[1732172775202,15.12246361,239.16,239.12,0.9059483]
[1732172775502,15.12246361,239.14,239.06,0.9059483]
[1732172775693,15.12246361,239.09,239.05,0.5]
[1732172776019,15.12246361,239.07,239.05,0.4059483]
[1732172776200,15.12246361,239.07,239.03,0.4059483]
[1732172776521,15.12246361,239.04,239.03,0.9059483]
[1732172776695,15.12246361,239.04,239.03,0.4059483]
[1732172777220,15.12246361,239.04,238.99,0.5]
[1732172777818,15.12246361,239.02,238.99,0.5]
[1732172778417,15.12246361,239.02,239.01,0.4059483]
[1732172778719,15.12246361,239.06,239.01,0.9059483]
[1732172779303,15.12246361,239.08,239.03,0.9059483]
[1732172779603,15.12246361,239.1,239.06,0.5]
[1732172779805,15.12246361,239.1,239.05,0.9059483]
[1732172780515,15.12246361,239.12,239.06,0.4059483]
[1732172780892,15.12246361,239.12,239.08,0.5]
[1732172781116,15.12246361,239.16,239.12,0.5]
[1732172781816,15.12246361,239.14,239.08,0.9059483]
[1732172782116,15.12246361,239.14,239.1,0.5]
[1732172782316,15.12246361,239.16,239.12,0.5]
[1732172782524,15.12246361,239.18,239.12,0.9059483]
[1732172783822,15.12246361,239.22,239.15,0.4059483]
[1732172783993,15.12246361,239.2,239.16,0.9059483]
[1732172784596,15.12246361,239.24,239.19,0.5]
[1732172785101,15.12246361,239.24,239.2,0.4059483]
[1732172785806,15.12246361,239.26,239.2,0.4059483]
[1732172786299,15.12246361,239.24,239.2,0.4059483]
[1732172786620,15.12246361,239.24,239.22,0.5]
[1732172787920,15.12246361,239.24,239.2,0.4059483]
[1732172788123,15.12246361,239.22,239.19,0.5]
[1732172788301,15.12246361,239.2,239.19,0.9059483]
[1732172788508,15.12246361,239.2,239.17,0.9059483]
[1732172789213,15.12246361,239.18,239.17,0.9059483]
[1732172789406,15.12246361,239.18,239.15,0.4059483]
[1732172789612,15.12246361,239.16,239.15,0.4059483]
[1732172790723,27.956384,239.27,239.16,0.9059483]
[1732172790905,15.12246361,239.2,239.19,0.4059483]
[1732172791109,15.12246361,239.22,239.19,0.4059483]
[1732172791309,15.12246361,239.24,239.2,0.5]
[1732172791805,15.12246361,239.22,239.2,0.5]
[1732172793836,15.12246361,239.24,239.21,0.4059483]
[1732172794011,15.12246361,239.24,239.22,0.5]
[1732172797824,15.12246361,239.26,239.22,0.5]
[1732172798024,15.12246361,239.24,239.22,0.5]
[1732172800319,15.12246361,239.24,239.21,0.4059483]
[1732172800637,15.12246361,239.24,239.22,0.5]
[1732172801021,15.12246361,239.26,239.22,0.5]
[1732172802447,15.12246361,239.26,239.22,0.9059483]
[1732172803141,0.469598,239.28,239.22,0.9059483]
[1732172803452,0.469598,239.28,239.25,0.5]
[1732172804330,0.469598,239.28,239.24,0.4059483]
[1732172804534,15.12246361,239.27,239.24,0.4059483]
[1732172805259,15.12246361,239.27,239.23,0.5]
[1732172805557,15.12246361,239.27,239.24,0.4059483]
[1732172807852,15.12246361,239.27,239.23,0.5]
[1732172808340,15.12246361,239.27,239.26,0.5]
[1732172808539,0.469598,239.28,239.26,0.5]
[1732172808748,0.469598,239.28,239.26,0.9059483]
[1732172809144,0.469598,239.28,239.26,16.02841191]
[1732172810941,0.469598,239.28,239.26,0.9059483]
[1732172814062,0.469598,239.28,239.26,16.02841191]
[1732172814637,0.469598,239.28,239.26,0.9059483]
[1732172815260,0.469598,239.28,239.26,16.02841191]
[1732172815671,0.469598,239.28,239.26,0.9059483]
[1732172821476,0.469598,239.28,239.27,9.64248786]
[1732172824873,0.469598,239.28,239.26,0.9059483]
[1732172830600,9.11208586,239.32,239.26,0.9059483]
[1732172830898,9.11208586,239.32,239.28,0.4059483]
[1732172831105,9.11208586,239.32,239.3,0.4059483]
[1732172831897,6.52147234,239.37,239.35,0.5]
[1732172832089,6.52147234,239.38,239.35,0.5]
[1732172832391,6.52147234,239.37,239.35,0.5]
[1732172832907,6.52147234,239.39,239.38,0.4059483]
[1732172833073,6.52147234,239.4,239.38,0.9059483]
[1732172833273,6.52147234,239.42,239.38,0.9059483]
[1732172833683,16.1639602,239.42,239.38,0.9059483]
[1732172833914,9.64248786,239.41,239.38,0.9059483]
[1732172834122,9.64248786,239.4,239.36,0.9059483]
[1732172834304,9.64248786,239.39,239.36,0.4059483]
[1732172834614,9.64248786,239.39,239.3,170.293]
[1732172834615,9.64248786,239.38,239.32,0.9059483]
[1732172834814,9.64248786,239.36,239.32,0.9059483]
[1732172835005,9.64248786,239.34,239.32,0.5]
[1732172835319,9.64248786,239.35,239.32,0.9059483]
[1732172836295,9.64248786,239.33,239.32,0.5]
[1732172836895,16.1639602,239.35,239.32,0.9059483]
[1732172837101,9.64248786,239.33,239.32,0.5]
[1732172837697,9.64248786,239.33,239.3,0.4059483]
[1732172838017,9.64248786,239.33,239.3,0.9059483]
[1732172838202,23.776884,239.34,239.3,0.9059483]
[1732172839624,6.52147234,239.35,239.33,0.9059483]
[1732172840509,6.52147234,239.35,239.33,0.4059483]
[1732172840718,13.00932627,239.35,239.31,0.5]
[1732172841015,6.53930021,239.34,239.33,0.5]
[1732172841792,6.53930021,239.35,239.33,0.5]
[1732172842207,35.6611404,239.4,239.33,10.14248786]
[1732172842208,6.53930021,239.36,239.33,10.14248786]
[1732172842409,6.53930021,239.36,239.35,0.5]
[1732172844424,9.64248786,239.36,239.31,0.5]
[1732172844724,6.54222161,239.35,239.33,0.5]
[1732172845303,6.54222161,239.35,239.31,0.5]
[1732172845515,6.54222161,239.35,239.33,0.5]
[1732172846497,6.54222161,239.34,239.31,0.5]
[1732172848497,16.18470947,239.34,239.31,0.5]
[1732172849110,6.54222161,239.34,239.31,0.5]
[1732172850810,6.54222161,239.33,239.31,0.5]
[1732172851318,6.54222161,239.32,239.31,0.5]
[1732172855427,13.00932627,239.33,239.31,0.5]
[1732172856440,6.55189666,239.32,239.31,0.5]
[1732172856617,22.65181413,239.34,239.31,0.5]
[1732172856813,13.00932627,239.33,239.31,0.5]
[1732172858331,22.65181413,239.33,239.31,0.5]
[1732172858525,13.00932627,239.33,239.31,0.5]
[1732172858728,13.00932627,239.34,239.31,10.14248786]
[1732172858940,6.55459585,239.34,239.33,0.5]
[1732172859627,6.55516283,239.34,239.33,0.5]
[1732172861124,6.55516283,239.35,239.33,0.5]
[1732172861531,6.55516283,239.34,239.33,0.5]
[1732172862327,6.55516283,239.35,239.33,0.5]
[1732172862726,6.55516283,239.34,239.33,0.5]
[1732172865262,6.55516283,239.35,239.33,0.5]
[1732172866141,13.00932627,239.34,239.33,0.5]
[1732172866342,22.65181413,239.35,239.33,0.5]
[1732172866543,13.00932627,239.34,239.33,0.5]
[1732172866742,13.00932627,239.35,239.33,0.5]
[1732172867063,6.55456491,239.34,239.33,0.5]
[1732172875470,6.55456491,239.34,239.33,23.6549]
[1732172875667,6.55456491,239.39,239.35,0.5]
[1732172875874,6.55456491,239.39,239.35,10.14248786]
[1732172876278,6.55456491,239.39,239.38,0.5]
[1732172876477,13.00932627,239.41,239.38,0.5]
[1732172876478,6.55456491,239.41,239.38,0.5]
[1732172876654,6.55456491,239.42,239.38,0.5]
[1732172876858,6.55456491,239.42,239.41,0.5]
[1732172877254,6.55456491,239.43,239.41,0.5]
[1732172877554,13.00932627,239.45,239.41,0.5]
[1732172877555,6.55456491,239.42,239.41,0.5]
[1732172877862,6.55456491,239.43,239.41,0.5]
[1732172878065,6.55456491,239.42,239.41,0.5]
[1732172878267,6.55456491,239.43,239.41,0.5]
[1732172878558,6.55456491,239.42,239.41,0.5]
[1732172879570,26.05437269,239.49,239.41,0.5]
[1732172879571,6.55456491,239.43,239.41,0.5]
[1732172879958,6.55456491,239.43,239.42,33.44418786]
[1732172880177,6.55456491,239.45,239.44,0.5]
[1732172880379,6.55456491,239.45,239.44,10.14248786]
[1732172880578,6.55456491,239.47,239.44,10.14248786]
[1732172880764,6.55456491,239.49,239.46,10.14248786]
[1732172880960,6.55456491,239.49,239.48,0.5]
[1732172881279,6.55456491,239.5,239.48,0.5]
[1732172881461,6.55456491,239.49,239.48,0.5]
[1732172881977,6.55456491,239.51,239.48,0.5]
[1732172882171,6.55456491,239.5,239.48,0.5]
[1732172882484,6.60152471,239.52,239.5,0.5]
[1732172882774,6.55456491,239.51,239.5,0.5]
[1732172883162,61.26872537,239.52,239.44,0.5]
[1732172883365,9.64248786,239.45,239.44,0.5]
[1732172883576,9.64248786,239.45,239.42,0.5]
[1732172883761,9.64248786,239.43,239.42,0.5]
[1732172884273,9.64248786,239.45,239.44,0.5]
[1732172884472,6.53260718,239.47,239.46,0.5]
[1732172884665,9.64248786,239.47,239.46,0.5]
[1732172885678,6.53260718,239.49,239.46,0.5]
[1732172885976,9.64248786,239.49,239.48,0.5]
[1732172886456,16.17509504,239.51,239.48,0.5]
[1732172886861,16.17509504,239.51,239.5,0.5]
[1732172887055,6.57956698,239.52,239.45,9.64248786]
[1732172887467,0.0469598,239.52,239.45,9.64248786]
[1732172888680,0.0469598,239.52,239.47,9.64248786]
[1732172890888,0.0469598,239.52,239.51,9.64248786]
[1732172891067,0.0469598,239.52,239.49,9.64248786]
[1732172891384,0.0469598,239.52,239.49,170.64248786]
[1732172892183,0.0469598,239.52,239.49,161.0]
[1732172892489,0.0469598,239.52,239.47,9.64248786]
[1732172892781,0.0469598,239.52,239.51,9.64248786]
[1732172895486,0.0469598,239.52,239.48,1.6261346]
[1732172895487,0.0469598,239.52,239.48,5.75923482]
[1732172895676,0.0469598,239.52,239.47,161.0]
[1732172895876,0.0469598,239.52,239.46,18.87458786]
[1732172896090,0.0469598,239.52,239.48,9.64248786]
[1732172896267,0.0469598,239.52,239.5,9.64248786]
[1732172896680,0.0469598,239.52,239.5,15.03552738]
[1732172900098,0.0469598,239.52,239.48,0.5]
[1732172900389,0.0469598,239.52,239.51,15.03552738]
[1732172903477,0.0469598,239.52,239.49,15.03552738]
[1732172905381,0.0469598,239.52,239.4,161.0]
[1732172905595,0.0469598,239.52,239.43,15.03552738]
[1732172906479,15.03552738,239.51,239.43,15.03552738]
[1732172906698,15.03552738,239.48,239.41,181.67394519]
[1732172907273,15.03552738,239.49,239.41,181.67394519]
[1732172908686,15.03552738,239.48,239.41,181.67394519]
[1732172909327,0.0469598,239.52,239.46,15.03552738]
[1732172909688,15.08248718,239.52,239.44,15.03552738]
[1732172909911,0.0469598,239.52,239.45,15.03552738]
[1732172917540,0.0469598,239.52,239.47,15.03552738]
[1732172917820,0.0469598,239.52,239.43,0.62632503]
[1732172917821,0.0469598,239.52,239.51,15.03552738]
[1732172917996,0.0469598,239.52,239.51,20.67394519]
[1732172918708,0.0469598,239.52,239.51,15.25820389]
[1732172921096,0.0469598,239.52,239.5,9.61978608]
[1732172921798,0.0469598,239.52,239.51,10.24598206]
[1732172926429,0.0469598,239.52,239.51,171.24598206]
[1732172926633,0.0469598,239.52,239.51,170.61978608]
[1732172927445,0.0469598,239.52,239.51,176.25820389]
[1732172927644,0.0469598,239.52,239.51,181.80598451]
[1732172930325,0.0469598,239.52,239.51,176.25820389]
[1732172930527,0.0469598,239.52,239.51,161.0]
[1732172930824,0.0469598,239.52,239.51,170.61978608]
[1732172931030,0.0469598,239.52,239.51,161.0]
[1732172932353,0.0469598,239.52,239.49,9.61978608]
[1732172933662,0.0469598,239.52,239.48,9.61978608]
[1732172933829,0.0469598,239.52,239.49,9.61978608]
[1732172936042,0.0469598,239.52,239.48,9.61978608]
[1732172937965,0.0469598,239.52,239.49,9.61978608]
[1732172938347,0.0469598,239.52,239.51,9.61978608]
[1732172938967,26.01865254,239.66,239.65,166.70566655]
[1732172939144,0.0469598,239.76,239.75,0.5]
[1732172939356,0.04226382,239.79,239.78,0.5]
[1732172939550,0.16905528,239.79,239.78,24.17942663]
[1732172939760,9.61978608,239.98,239.83,0.5]
[1732172939948,9.83110518,239.98,239.83,0.5]
[1732172940248,9.61978608,239.94,239.85,9.61978608]
[1732172940667,9.61978608,239.92,239.85,9.61978608]
[1732172940877,9.61978608,239.88,239.8,9.61978608]
[1732172941080,9.61978608,239.9,239.82,9.61978608]
[1732172941463,9.61978608,239.9,239.8,9.61978608]
[1732172941653,9.61978608,239.88,239.78,9.61978608]
[1732172941859,4.3784191,239.98,239.8,9.61978608]
[1732172942050,9.61978608,239.9,239.82,9.61978608]
[1732172942881,0.5,239.97,239.8,14.99487567]
[1732172942882,14.99487567,239.88,239.8,14.99487567]
[1732172944250,14.99487567,239.88,239.82,14.99487567]
[1732172945751,23.776884,239.94,239.8,14.99487567]
[1732172945947,14.99487567,239.87,239.73,162.0]
[1732172946263,14.99487567,239.89,239.82,14.99487567]
[1732172946769,14.99487567,239.91,239.82,14.99487567]
[1732172946951,0.2113191,239.98,239.86,14.99487567]
[1732172947268,14.99487567,239.93,239.86,14.99487567]
[1732172947469,14.99487567,239.92,239.84,14.99487567]
[1732172947971,14.99487567,239.88,239.79,161.0]
[1732172948144,14.99487567,239.88,239.81,14.99487567]
[1732172948348,14.99487567,239.89,239.81,14.99487567]
[1732172948559,14.99487567,239.9,239.82,14.99487567]
[1732172949377,0.2113191,239.98,239.85,14.99487567]
[1732172949562,14.99487567,239.94,239.86,14.99487567]
[1732172949961,14.99487567,239.93,239.85,14.99487567]
[1732172950151,0.2113191,239.98,239.88,14.99487567]
[1732172950152,14.99487567,239.96,239.88,14.99487567]
[1732172951164,14.99487567,239.94,239.88,14.99487567]
[1732172951366,14.99487567,239.93,239.86,14.99487567]
[1732172955565,15.20619477,239.93,239.86,14.99487567]
[1732172955969,0.2113191,239.93,239.88,14.99487567]
[1732172960162,0.2113191,239.93,239.86,21.2446439]
[1732172960562,15.20619477,239.93,239.86,6.24976823]
[1732172961075,15.20619477,239.93,239.85,14.99487567]
[1732172961076,14.99487567,239.92,239.85,14.99487567]
[1732172962073,15.20619477,239.93,239.86,14.99487567]
[1732172962594,0.2113191,239.93,239.87,14.99487567]
[1732172962797,0.2113191,239.93,239.86,14.99487567]
[1732172963093,15.20619477,239.93,239.86,14.99487567]
[1732172963761,15.20619477,239.93,239.85,14.99487567]
[1732172964761,9.59362288,239.88,239.8,6.24976823]
[1732172964960,9.59362288,239.88,239.81,9.59362288]
[1732172965162,0.2113191,239.93,239.83,9.59362288]
[1732172965566,9.59362288,239.9,239.83,9.59362288]
[1732172966602,9.59362288,239.9,239.82,9.59362288]
[1732172967268,9.59362288,239.89,239.82,9.59362288]
[1732172968282,9.59362288,239.89,239.81,15.84339111]
[1732172968665,9.59362288,239.88,239.81,15.84339111]
[1732172969181,9.59362288,239.89,239.81,15.84339111]
[1732172969401,9.59362288,239.9,239.82,9.59362288]
[1732172970576,9.59362288,239.89,239.81,15.84339111]
[1732172973392,9.59362288,239.88,239.81,6.24976823]
[1732172973802,9.59362288,239.87,239.81,6.24976823]
[1732172975501,9.59362288,239.87,239.8,9.59362288]
[1732172975795,9.59362288,239.83,239.76,6.24976823]
[1732172975991,4.3798191,239.9,239.76,6.24976823]
[1732172975992,9.59362288,239.82,239.76,6.24976823]
[1732172976296,9.59362288,239.83,239.76,6.24976823]
[1732172976479,9.59362288,239.84,239.77,9.59362288]
[1732172977092,9.59362288,239.84,239.76,6.24976823]
[1732172977277,9.59362288,239.81,239.76,6.24976823]
[1732172977685,9.59362288,239.81,239.71,9.3566]
[1732172977884,9.59362288,239.81,239.73,9.59362288]
[1732172978572,42.54319152,239.88,239.74,9.59362288]
[1732172978573,9.59362288,239.82,239.74,9.59362288]
[1732172979298,9.59362288,239.81,239.73,9.59362288]
[1732172979594,9.59362288,239.81,239.74,9.59362288]
[1732172980191,9.59362288,239.8,239.73,9.59362288]
[1732172980573,9.59362288,239.74,239.65,15.36290517]
[1732172980774,4.1691,239.86,239.73,9.59362288]
[1732172980775,4.01745706,239.86,239.73,9.59362288]
[1732172980993,23.0084,239.88,239.73,185.5082]
[1732172982582,9.59362288,239.83,239.73,185.5082]
[1732172982901,9.59362288,239.83,239.75,9.59362288]
[1732172983208,9.59362288,239.83,239.73,185.5082]
[1732172983209,9.59362288,239.81,239.73,195.10182288]
[1732172983394,9.59362288,239.81,239.73,34.10182288]
[1732172984599,9.59362288,239.79,239.73,24.5082]
[1732172984990,9.59362288,239.8,239.73,24.5082]
[1732172985194,9.33806564,239.84,239.73,34.10182288]
[1732172985413,9.59362288,239.85,239.78,9.59362288]
[1732172985596,9.59362288,239.83,239.75,9.59362288]
[1732172985794,9.59362288,239.81,239.73,195.10182288]
[1732172985995,9.59362288,239.81,239.74,9.59362288]
[1732172986600,9.59362288,239.81,239.73,34.10182288]
[1732172986800,9.59362288,239.8,239.73,24.5082]
[1732172987004,0.2113191,239.83,239.73,24.5082]
[1732172987005,9.59362288,239.78,239.73,24.5082]
[1732172987208,9.59362288,239.76,239.68,24.8279]
[1732172987425,9.59362288,239.76,239.68,34.42152288]
[1732172987603,9.59362288,239.75,239.68,34.42152288]
[1732172987920,9.59362288,239.72,239.64,9.59362288]
[1732172988117,9.59362288,239.72,239.63,9.459]
[1732172988415,9.59362288,239.72,239.65,9.59362288]
[1732172988790,9.59362288,239.72,239.63,9.459]
[1732172988991,9.59362288,239.71,239.63,19.05262288]
[1732172989305,9.59362288,239.73,239.66,9.59362288]
[1732172989791,9.59362288,239.72,239.65,9.59362288]
[1732172990294,9.59362288,239.73,239.66,9.59362288]
[1732172990887,9.59362288,239.72,239.65,9.59362288]
[1732172991795,9.59362288,239.72,239.63,19.05262288]
[1732172992015,9.59362288,239.7,239.63,9.459]
[1732172992797,9.59362288,239.7,239.62,34.42152288]
[1732172993125,9.59362288,239.68,239.58,161.0]
[1732172993297,9.59362288,239.65,239.57,203.53982288]
[1732172993618,1.0,239.75,239.57,32.9462]
[1732172993619,9.59362288,239.63,239.57,32.9462]
[1732172995530,9.59362288,239.63,239.51,0.5]
[1732172995531,23.776884,239.69,239.53,23.3178]
[1732172995816,9.59362288,239.62,239.55,9.59362288]
[1732172996599,9.59362288,239.61,239.54,9.59362288]
[1732172997024,9.59362288,239.62,239.55,9.59362288]
[1732172998407,0.5,239.73,239.59,9.59362288]
[1732172998613,9.59362288,239.66,239.59,9.59362288]
[1732172998931,9.59362288,239.65,239.59,9.59362288]
[1732172999226,9.59362288,239.65,239.53,184.3178]
[1732172999227,9.59362288,239.65,239.58,9.59362288]
[1732172999724,9.59362288,239.68,239.61,9.59362288]
[1732173000113,4.1711,239.75,239.61,9.59362288]
[1732173000302,9.59362288,239.69,239.62,9.59362288]
[1732173000617,9.59362288,239.7,239.62,9.59362288]
[1732173000814,16.674536,239.72,239.65,9.59362288]
[1732173001129,9.59362288,239.72,239.65,9.59362288]
[1732173001428,9.59362288,239.7,239.63,9.59362288]
[1732173002527,9.59362288,239.7,239.59,167.00121307]
[1732173002528,9.59362288,239.66,239.59,170.59362288]
[1732173002827,13.764623,239.75,239.59,161.0]
[1732173002828,9.59362288,239.64,239.59,161.0]
[1732173003019,9.59362288,239.64,239.57,9.59362288]
[1732173003320,9.59362288,239.65,239.58,9.59362288]
[1732173003530,9.59362288,239.7,239.63,9.59362288]
[1732173003821,9.59362288,239.73,239.66,9.59362288]
[1732173004027,9.593623,239.75,239.65,9.59362288]
[1732173004235,9.593623,239.75,239.66,9.59362288]
[1732173004522,9.59362288,239.73,239.66,9.59362288]
[1732173004730,9.59362288,239.74,239.67,9.59362288]
[1732173005411,9.59362288,239.73,239.66,9.59362288]
[1732173005807,0.2113191,239.76,239.69,9.59362288]
[1732173006127,9.80494198,239.76,239.69,9.59362288]
[1732173006622,0.2113191,239.76,239.71,9.59362288]
[1732173006808,0.2113191,239.76,239.72,9.59362288]
[1732173011216,0.2113191,239.76,239.72,170.59362288]
[1732173011526,9.59362288,239.74,239.67,161.0]
[1732173011724,9.59362288,239.73,239.67,161.0]
[1732173011927,9.59362288,239.73,239.65,9.59362288]
[1732173011928,9.59362288,239.69,239.63,161.0]
[1732173012107,9.59362288,239.69,239.62,9.59362288]
[1732173012308,9.59362288,239.7,239.62,9.59362288]
[1732173012731,9.59362288,239.71,239.63,9.59362288]
[1732173013511,38.58581062,239.76,239.63,9.59362288]
[1732173013734,9.59362288,239.71,239.64,9.59362288]
[1732173014320,9.59362288,239.71,239.57,194.4755]